bitfinex/quotes_ETHUSD_20260129
["timestamp","ask_amount","ask_price","bid_price","bid_amount"]
[1769718027792,13.34533603,2800.7,2799.6,0.002]
[1769718028003,14.2376514,2801.7,2800.0,12.91584399]
[1769718028291,13.34533603,2801.6,2800.1,14.9589564]
[1769718028493,0.08219423,2801.5,2800.1,12.91584399]
[1769718028680,13.34533603,2801.7,2800.1,13.66384399]
[1769718029259,13.34533603,2801.7,2800.1,12.91584399]
[1769718029466,0.89228566,2801.8,2800.1,13.66384399]
[1769718029467,13.34533603,2801.6,2800.1,13.66384399]
[1769718029692,0.08219423,2801.5,2800.1,13.66384399]
[1769718029874,13.34533603,2801.6,2800.1,13.66384399]
[1769718030075,13.34533603,2801.6,2800.2,0.89279337]
[1769718030076,14.23770085,2801.6,2800.2,0.89279337]
[1769718032115,13.34533603,2801.0,2799.8,0.002]
[1769718032886,14.23788852,2801.0,2799.8,0.002]
[1769718033181,0.89250524,2801.2,2799.8,12.91784399]
[1769718035432,3.56979552,2801.3,2799.8,12.91784399]
[1769718035587,14.53777326,2801.4,2800.0,13.06562901]
[1769718035787,13.72755656,2801.3,2799.9,0.89288903]
[1769718036716,13.64536233,2801.3,2799.9,13.95851804]
[1769718036919,0.89240147,2801.5,2800.0,13.06562901]
[1769718037222,13.64536233,2801.8,2800.4,7.51528006]
[1769718037512,13.64536233,2801.8,2800.4,9.57337097]
[1769718037683,0.89231537,2801.7,2800.5,0.89269773]
[1769718038415,14.53766693,2801.8,2800.5,0.89269773]
[1769718042530,13.72755656,2801.7,2800.5,0.89269773]
[1769718042729,13.64536233,2801.4,2800.5,0.89269773]
[1769718043034,13.64536233,2801.2,2800.4,0.89270487]
[1769718043912,13.72755656,2800.9,2800.1,0.002]
[1769718044097,13.64536233,2800.7,2800.1,0.002]
[1769718044420,13.64536233,2800.7,2799.8,0.002]
[1769718046840,14.53800027,2800.7,2799.8,0.002]
[1769718049941,13.72755656,2800.4,2799.8,0.002]
[1769718050234,13.64536233,2800.4,2799.8,0.002]
[1769718051139,14.53811186,2800.4,2799.8,0.002]
[1769718052350,13.64536233,2800.1,2799.3,0.002]
[1769718052839,15.28611186,2800.4,2799.3,0.002]
[1769718054133,0.08219423,2800.3,2799.3,0.002]
[1769718055226,0.001,2800.2,2799.3,0.002]
[1769718059531,0.001,2800.2,2799.3,12.65488604]
[1769718059923,13.58115798,2800.2,2799.3,0.002]
[1769718061134,0.001,2800.2,2799.3,0.002]
[1769718061867,14.55615471,2800.2,2799.3,0.002]
[1769718062042,13.58015798,2799.7,2798.8,3.57294124]
[1769718062231,13.58015798,2799.7,2799.0,0.89317201]
[1769718063662,14.47312529,2799.7,2798.5,3.5733163]
[1769718066451,14.47312529,2799.7,2798.6,0.89330379]
[1769718066452,13.58015798,2799.5,2798.6,0.89330379]
[1769718066963,13.58015798,2799.5,2799.2,0.002]
[1769718067732,13.58015798,2799.5,2798.6,0.89330379]
[1769718068152,13.58015798,2799.3,2798.5,0.8933118]
[1769718068662,13.58015798,2799.3,2798.1,24.37962549]
[1769718068663,13.58015798,2799.3,2798.3,3.57334286]
[1769718069263,14.47324897,2799.3,2798.2,13.54631753]
[1769718069461,13.58015798,2799.3,2798.3,12.65288604]
[1769718072044,13.58015798,2799.3,2798.4,0.89336763]
[1769718078654,13.58015798,2799.4,2798.4,0.89336763]
[1769718078848,13.58015798,2799.4,2798.6,0.002]
[1769718079071,0.001,2799.3,2798.6,0.002]
[1769718079252,13.58015798,2799.2,2798.6,0.002]
[1769718081683,13.58015798,2799.2,2798.7,6.27287775]
[1769718083883,0.001,2799.3,2798.7,7.16611808]
[1769718085859,13.24034256,2799.3,2798.7,7.16611808]
[1769718092291,13.24034256,2799.3,2798.8,0.002]
[1769718092469,10.271,2800.2,2799.2,12.96777075]
[1769718092675,20.55201248,2800.6,2800.1,6.27287775]
[1769718092873,19.65934256,2800.6,2800.1,6.27287775]
[1769718093373,20.55201355,2800.6,2800.1,6.27287775]
[1769718093574,20.55201355,2800.6,2799.7,12.96777075]
[1769718093575,12.77874237,2800.5,2799.7,6.27287775]
[1769718096279,12.8609366,2800.4,2799.5,20.19078349]
[1769718096603,12.77874237,2800.4,2799.7,0.89293189]
[1769718098399,12.77874237,2800.4,2799.6,3.57184741]
[1769718100402,12.8609366,2800.1,2799.5,0.89300457]
[1769718100604,12.77874237,2800.1,2799.5,0.89300457]
[1769718101810,12.77874237,2800.1,2799.5,0.89300461]
[1769718103306,12.27874237,2800.1,2799.3,3.57228573]
[1769718103607,13.67157538,2800.1,2799.3,0.89308041]
[1769718103806,0.97499437,2800.2,2799.3,0.89308041]
[1769718104205,13.75373674,2800.2,2799.3,0.89308041]
[1769718105423,13.75373674,2800.2,2799.5,0.002]
[1769718105618,13.75473674,2800.2,2799.5,0.002]
[1769718106829,13.67254251,2800.2,2799.5,0.002]
[1769718107615,13.75473674,2800.2,2799.5,0.002]
[1769718109931,12.8609366,2799.8,2799.1,0.89311729]
[1769718110228,12.8609366,2799.8,2799.1,0.89312631]
[1769718111326,12.8609366,2799.8,2799.0,0.89316254]
[1769718111541,12.8609366,2799.8,2799.0,0.89315809]
[1769718111715,12.77874237,2799.7,2798.8,0.002]
[1769718112801,12.77874237,2799.7,2798.9,6.27287775]
[1769718113933,12.77874237,2799.7,2799.0,0.89317613]
[1769718116639,13.67170671,2799.7,2799.0,0.89317613]
[1769718116813,12.77874237,2799.7,2799.0,0.89317613]
[1769718117207,14.80649679,2799.9,2799.0,13.92706941]
[1769718118702,13.99577876,2799.8,2799.2,0.002]
[1769718118905,0.001,2799.6,2799.2,0.002]
[1769718121200,14.80638166,2800.2,2799.3,13.03389328]
[1769718121404,15.55433403,2800.4,2799.5,19.30677103]
[1769718121601,0.748,2800.4,2799.8,19.30677103]
[1769718121809,0.748,2800.4,2799.9,13.03389328]
[1769718122435,0.748,2800.4,2799.8,6.27287775]
[1769718122603,0.08219423,2800.8,2799.9,13.03389328]
[1769718122814,0.97476447,2800.9,2799.9,13.03389328]
[1769718123019,0.89257024,2800.9,2800.1,6.27287775]
[1769718123237,0.89257024,2800.9,2800.2,0.89279337]
[1769718123544,14.88833582,2801.0,2800.2,0.89279337]
[1769718124111,0.08219423,2801.0,2800.2,13.92668665]
[1769718124315,0.748,2801.1,2800.4,19.30677103]
[1769718124516,0.748,2801.1,2800.5,13.03389328]
[1769718125018,0.748,2801.1,2800.4,19.30677103]
[1769718125342,14.88811412,2801.7,2800.7,19.30677103]
[1769718125541,0.08219423,2801.5,2800.6,0.89266585]
[1769718125743,0.08219423,2801.5,2800.5,0.8926765]
[1769718125744,0.08219423,2801.3,2800.5,0.8926765]
[1769718125917,13.91358453,2801.5,2800.5,0.8926765]
[1769718126123,13.91358453,2801.5,2800.5,13.92656978]
[1769718126358,14.80591989,2801.7,2800.7,13.03389328]
[1769718126568,0.08219423,2801.6,2800.7,13.03389328]
[1769718127055,13.99577876,2801.4,2800.5,0.8926765]
[1769718129622,14.88819744,2801.4,2800.4,16.60480082]
[1769718130026,13.99577876,2801.4,2800.6,6.26392524]
[1769718130225,14.88819094,2801.4,2800.6,6.26392524]
[1769718131430,14.88819094,2801.4,2800.4,16.60480082]
[1769718131658,13.99577876,2801.0,2800.2,0.89277005]
[1769718131861,0.08219423,2800.8,2800.2,0.89277005]
[1769718133063,13.99577876,2800.8,2800.5,0.002]
[1769718133262,13.99577876,2800.8,2800.1,0.89279908]
[1769718133564,14.8061907,2800.8,2799.9,0.89288903]
[1769718133763,0.08219423,2800.7,2799.9,0.89288903]
[1769718133967,14.8061907,2800.8,2799.9,0.89288903]
[1769718135658,0.08219423,2800.7,2799.9,0.89288903]
[1769718136051,14.88838493,2800.8,2799.9,0.89288903]
[1769718136362,14.88838493,2800.8,2799.9,13.92678231]
[1769718136873,14.8061907,2800.8,2799.9,13.92678231]
[1769718137961,14.88838493,2800.8,2799.9,13.92678231]
[1769718138176,14.88840343,2800.8,2799.9,13.92678231]
[1769718138585,14.8062092,2800.8,2799.9,13.92678231]
[1769718138873,14.88840343,2800.8,2799.9,13.92678231]
[1769718141543,0.89262467,2800.8,2799.9,13.92678231]
[1769718142044,14.8062092,2800.8,2799.9,13.92678231]
[1769718142877,14.8062092,2800.8,2799.9,0.89288903]
[1769718143065,13.91358453,2800.6,2799.9,0.89287945]
[1769718144081,0.08219423,2800.5,2799.9,0.89287945]
[1769718144247,13.99577876,2800.5,2799.4,6.26592524]
[1769718144448,13.91358453,2800.2,2799.5,0.89298915]
[1769718144653,14.80639168,2800.2,2799.4,0.002]
[1769718145179,14.80639168,2800.2,2800.1,0.002]
[1769718145890,14.80639168,2800.2,2799.4,0.002]
[1769718146185,14.80639168,2800.2,2798.7,0.89324889]
[1769718146186,12.86235954,2799.5,2798.7,0.89324889]
[1769718146400,0.08219423,2799.7,2798.6,0.89530217]
[1769718146401,12.86235954,2799.4,2798.6,0.89530217]
[1769718146697,0.08219423,2799.2,2798.6,0.002]
[1769718147057,0.748,2799.8,2799.0,6.26392524]
[1769718147373,14.42109333,2799.8,2799.0,6.26392524]
[1769718148190,14.42109333,2799.8,2798.8,12.91406064]
[1769718148581,12.86235954,2799.7,2798.8,0.002]
[1769718148789,0.8930166,2799.6,2798.8,0.89523995]
[1769718149117,12.78016531,2799.5,2798.8,0.002]
[1769718149294,12.78016531,2799.3,2798.8,0.002]
[1769718149501,0.08219423,2799.2,2798.8,0.002]
[1769718149862,12.86235954,2799.2,2798.8,0.002]
[1769718150463,0.08219423,2799.4,2798.8,0.002]
[1769718150660,12.86235954,2799.4,2798.8,0.002]
[1769718151061,0.89308041,2799.3,2798.8,0.002]
[1769718151678,13.67324572,2799.3,2798.8,0.002]
[1769718151885,0.08219423,2799.2,2798.8,0.002]
[1769718152085,13.67324572,2799.3,2798.8,0.002]
[1769718152373,12.78016531,2799.3,2798.8,0.002]
[1769718152900,0.89307279,2799.4,2798.8,0.002]
[1769718155889,3.57183821,2799.7,2799.0,6.26392524]
[1769718156274,0.748,2799.8,2799.0,6.26392524]
[1769718156475,0.89282525,2800.1,2799.4,12.64861326]
[1769718156675,0.8927937,2800.2,2799.3,6.26392524]
[1769718156902,13.83813891,2800.3,2799.4,12.64861326]
[1769718157074,14.58705274,2800.6,2799.4,12.64861326]
[1769718157274,0.97489196,2800.5,2799.6,6.26392524]
[1769718157677,0.89269773,2800.5,2799.6,6.26392524]
[1769718158411,12.94535501,2800.2,2799.4,0.89302738]
[1769718158570,12.94535501,2800.2,2799.6,0.89298086]
[1769718158897,12.94535501,2800.2,2799.3,6.26392524]
[1769718159097,12.94535501,2800.2,2799.3,9.8361981]
[1769718159300,13.92024697,2800.5,2799.6,0.89298364]
[1769718161519,13.92024697,2800.5,2799.5,0.89301661]
[1769718161724,0.08219423,2800.3,2799.5,0.89301661]
[1769718161881,13.92024697,2800.5,2799.5,0.89301661]
[1769718164329,13.92024697,2800.5,2799.5,12.64861326]
[1769718165019,13.83805274,2800.5,2799.5,12.64861326]
[1769718166420,13.83805274,2800.5,2799.6,0.89298471]
[1769718166936,13.83805274,2800.5,2799.2,3.5723751]
[1769718166937,12.94535501,2800.0,2799.2,3.5723751]
[1769718167285,12.94535501,2800.0,2799.4,0.89304601]
[1769718168534,13.83822728,2800.0,2799.1,0.89314422]
[1769718168696,12.94535501,2799.9,2799.0,0.002]
[1769718169030,13.02754924,2799.8,2799.0,7.15909619]
[1769718170627,0.89295281,2799.7,2799.0,7.15909619]
[1769718170799,13.83829355,2799.8,2799.0,7.15909619]
[1769718173919,13.83829355,2799.8,2799.0,7.15709619]
[1769718177529,13.92048778,2799.8,2798.8,0.002]
[1769718177729,13.79709843,2799.7,2799.0,7.15709971]
[1769718177922,13.79709843,2799.7,2799.0,7.15709943]
[1769718178645,0.89298471,2799.6,2799.0,7.15709943]
[1769718179045,0.89298471,2799.6,2799.0,6.26392524]
[1769718179250,14.69008314,2799.6,2799.0,6.26392524]
[1769718180255,0.08219423,2799.4,2798.8,0.002]
[1769718180420,13.79709843,2799.5,2798.8,6.26592524]
[1769718180625,0.89298471,2799.6,2798.8,6.26592524]
[1769718180626,0.97517894,2799.6,2798.8,6.26592524]
[1769718182456,0.97517894,2799.6,2799.2,0.002]
[1769718182636,14.77327737,2799.6,2799.2,0.002]
[1769718183444,0.08219423,2799.4,2799.2,0.002]
[1769718183633,13.87929266,2799.4,2799.0,0.002]
[1769718185926,0.89308041,2799.3,2799.0,0.002]
[1769718195183,3.57228846,2799.4,2799.0,0.002]
[1769718196093,3.57228846,2799.4,2799.2,0.002]
[1769718197091,3.65448269,2799.4,2799.2,0.002]
[1769718197590,4.40248269,2799.4,2799.2,0.002]
[1769718199559,4.40248269,2799.4,2798.8,0.002]
[1769718200376,0.08219423,2799.2,2798.8,0.002]
[1769718200667,0.08219423,2799.1,2798.6,0.002]
[1769718202495,0.89315949,2799.1,2798.6,0.002]
[1769718202691,0.89313936,2799.2,2798.6,0.002]
[1769718203602,0.89313936,2799.2,2798.6,13.50441072]
[1769718204372,3.57242224,2799.3,2798.6,13.50441072]
[1769718205721,7.31401162,2799.6,2799.2,13.77698397]
[1769718205942,0.89292092,2799.8,2799.1,6.27275931]
[1769718206113,14.52382019,2799.8,2799.1,6.27275931]
[1769718206694,14.52382019,2799.8,2798.6,0.89530302]
[1769718206695,14.52382019,2799.8,2798.8,20.94296611]
[1769718206992,13.54870504,2799.7,2798.8,23.39476542]
[1769718207202,0.08219423,2799.6,2798.8,14.67020456]
[1769718207499,0.08219423,2799.6,2798.8,14.67221788]
[1769718207823,0.001,2799.1,2798.8,13.77898397]
[1769718208430,0.001,2799.1,2798.8,14.67221944]
[1769718208624,14.44170675,2799.6,2798.9,0.8931903]
[1769718208829,14.44170675,2799.6,2798.8,13.77898397]
[1769718209029,14.44170675,2799.6,2798.6,3.57520916]
[1769718209030,0.08219423,2799.3,2798.6,0.89530293]
[1769718209268,0.08219423,2799.3,2798.6,14.6722869]
[1769718209529,13.54870504,2799.4,2798.6,14.6722869]
[1769718209712,0.08219423,2799.3,2798.6,14.67226095]
[1769718209900,0.08219423,2799.5,2798.6,14.67226095]
[1769718210107,0.08219423,2799.5,2798.6,13.77898397]
[1769718210298,0.08219423,2799.5,2798.6,14.67226725]
[1769718210628,13.63089927,2799.1,2798.6,0.002]
[1769718210807,0.08219423,2799.3,2798.5,13.77898397]
[1769718211007,0.08219423,2799.1,2798.5,13.77898397]
[1769718212117,0.08219423,2799.3,2798.5,13.77898397]
[1769718213331,0.08219423,2799.1,2798.5,13.77898397]
[1769718215552,14.92663757,2799.1,2798.5,0.002]
[1769718219438,0.001,2798.9,2798.5,0.002]
[1769718223649,0.89420804,2798.9,2798.5,0.002]
[1769718224733,0.001,2798.9,2798.5,0.002]
[1769718225827,0.08219423,2799.3,2798.5,13.47473851]
[1769718226150,0.89304851,2799.4,2798.7,13.47273851]
[1769718227360,0.08219423,2799.5,2798.7,13.47273851]
[1769718227814,0.08219423,2799.5,2798.6,2.86823884]
[1769718228023,0.08219423,2798.9,2798.2,3.62660808]
[1769718228430,14.03346871,2798.9,2798.2,3.62660808]
[1769718229050,14.03346871,2798.9,2798.0,14.36820943]
[1769718229248,14.03346871,2798.9,2798.1,0.89346056]
[1769718229455,0.89323995,2798.8,2798.1,13.47273851]
[1769718231330,0.89323995,2798.8,2798.4,0.002]
[1769718233173,14.84451443,2798.8,2798.4,0.002]
[1769718235469,13.08898644,2798.6,2798.1,0.002]
[1769718235676,13.83698644,2798.6,2798.1,0.002]
[1769718237371,13.08898644,2798.4,2798.1,0.002]
[1769718240464,0.89333571,2798.5,2798.1,0.002]
[1769718240989,13.98232215,2798.5,2798.1,0.002]
[1769718243391,14.06451638,2798.5,2798.1,0.002]
[1769718248198,13.98232215,2798.5,2798.1,0.002]
[1769718248368,1.64232069,2798.6,2798.1,0.002]
[1769718248573,13.08898644,2798.5,2798.1,0.002]
[1769718253701,1.64232069,2798.6,2798.1,0.002]
[1769718255011,0.001,2798.9,2798.2,13.09114359]
[1769718255302,0.89298471,2799.6,2798.6,13.09014359]
[1769718255674,0.89298471,2799.6,2798.8,13.09014359]
[1769718256186,14.06416538,2799.6,2798.6,13.98342988]
[1769718256495,13.98197115,2799.6,2798.6,13.98342988]
[1769718259216,1.64094286,2799.8,2798.9,13.09014359]
[1769718259412,1.64094286,2799.8,2799.0,15.02702304]
[1769718259601,13.17118067,2799.7,2799.0,1.93687945]
[1769718259915,13.17118067,2799.7,2798.8,13.09014359]
[1769718260506,13.17118067,2799.5,2798.6,0.89328629]
[1769718261078,0.89304851,2799.4,2798.6,13.09014359]
[1769718261285,13.98203495,2799.4,2798.4,13.09014359]
[1769718261500,13.08898644,2799.2,2798.5,1.39855432]
[1769718261678,13.08898644,2799.2,2798.3,13.98554315]
[1769718262711,13.08898644,2798.8,2798.1,0.002]
[1769718263631,0.89313667,2799.2,2798.4,13.09014359]
[1769718263779,0.89313667,2799.2,2798.5,15.02702304]
[1769718263983,0.89313667,2799.2,2798.5,13.09014359]
[1769718265512,0.89313667,2799.2,2798.3,6.27865091]
[1769718265513,13.77427571,2799.2,2798.3,13.98352793]
[1769718265897,12.88113904,2799.0,2798.3,0.89337634]
[1769718266394,12.79894481,2799.0,2798.2,0.89341245]
[1769718266718,12.88113904,2798.9,2798.3,0.89339824]
[1769718266917,12.88113904,2798.9,2798.2,0.8934099]
[1769718267591,0.001,2799.0,2798.6,13.00794936]
[1769718267825,0.89305917,2799.4,2798.6,13.00794936]
[1769718268026,13.54694481,2799.8,2798.7,13.00694936]
[1769718268229,0.89295281,2799.7,2798.7,13.00694936]
[1769718268429,12.88113904,2799.5,2798.7,13.00694936]
[1769718268727,12.88113904,2799.5,2798.6,1.24443609]
[1769718269627,0.89304851,2799.4,2798.7,0.89327187]
[1769718269998,12.79894481,2799.1,2798.3,3.5735052]
[1769718270215,12.79894481,2799.1,2798.5,0.8933348]
[1769718274501,12.79894481,2799.1,2798.3,3.5735052]
[1769718274707,12.79894481,2799.1,2798.3,17.65521013]
[1769718275738,13.84912206,2798.9,2798.1,0.002]
[1769718275945,13.84912206,2798.7,2798.1,0.002]
[1769718276948,0.89330379,2798.6,2798.1,0.002]
[1769718278140,0.89319702,2799.0,2798.3,13.00694936]
[1769718278437,1.18772934,2799.2,2798.3,14.93570939]
[1769718278636,0.29459583,2799.2,2798.3,14.93570939]
[1769718279338,1.18772767,2799.2,2798.4,0.89336763]
[1769718279545,0.29459583,2799.2,2798.6,13.00694936]
[1769718279740,0.29459583,2799.2,2798.6,15.02484615]
[1769718281459,0.29459583,2799.2,2798.7,0.89327187]
[1769718284359,0.29459583,2799.2,2798.8,13.00694936]
[1769718285840,0.29459583,2799.2,2798.7,0.89327187]
[1769718288058,0.29459583,2799.2,2798.7,13.90022123]
[1769718288242,13.84912206,2799.7,2798.8,21.23472303]
[1769718289260,13.84912206,2799.7,2798.9,0.89320804]
[1769718289659,14.74207542,2799.7,2798.9,0.89320804]
[1769718290130,13.84912206,2799.7,2798.9,0.89320804]
[1769718290632,13.84912206,2799.5,2798.9,0.89320804]
[1769718290851,13.85012206,2799.5,2798.9,0.89320804]
[1769718291364,13.85012206,2799.5,2798.7,0.89327187]
[1769718291730,13.84912206,2799.3,2798.7,0.89327187]
[1769718291926,13.84912206,2799.3,2798.6,3.5730875]
[1769718291927,13.84912206,2799.3,2798.6,0.89328054]
[1769718292934,13.84912206,2799.1,2798.6,0.89328054]
[1769718296379,13.84912206,2799.1,2798.3,0.002]
[1769718296579,13.84912206,2799.1,2798.4,2.28612718]
[1769718297873,13.31483427,2799.4,2798.4,15.29307654]
[1769718298845,13.31483427,2799.4,2798.5,0.89333571]
[1769718299069,13.31483427,2799.4,2798.5,13.90028507]
[1769718300479,0.001,2799.5,2798.6,13.00694936]
[1769718300676,0.001,2799.5,2798.7,15.02484296]
[1769718300878,0.001,2799.5,2798.7,13.00694936]
[1769718301099,0.001,2799.5,2798.8,13.90018931]
[1769718301981,0.001,2799.5,2797.8,0.002]
[1769718301982,14.0,2798.8,2797.8,0.002]
[1769718302150,14.0,2799.4,2798.0,6.27865091]
[1769718302355,14.0,2799.4,2797.8,0.002]
[1769718302356,14.0,2799.4,2798.6,0.89330318]
[1769718302564,14.0,2799.4,2798.7,0.002]
[1769718302768,13.999,2799.1,2798.3,0.89339324]
[1769718303085,13.999,2798.9,2798.5,0.002]
[1769718303567,13.999,2799.1,2798.5,0.002]
[1769718303764,0.001,2799.2,2798.6,6.27865091]
[1769718303971,0.001,2799.2,2798.6,6.906916]
[1769718304472,14.89311484,2799.2,2798.5,0.002]
[1769718304688,14.0,2799.2,2798.5,0.002]
[1769718304888,0.001,2799.2,2798.6,6.27865091]
[1769718305182,0.001,2799.2,2798.7,0.89327187]
[1769718305686,14.0,2799.2,2798.5,0.002]
[1769718305885,13.999,2799.1,2798.6,0.89329503]
[1769718306188,13.999,2799.1,2798.6,0.89328856]
[1769718306975,13.999,2799.1,2798.5,0.89531898]
[1769718307155,13.999,2799.1,2798.5,0.002]
[1769718307590,14.89215065,2799.1,2798.5,0.002]
[1769718307791,13.999,2798.9,2798.5,0.002]
[1769718308155,0.001,2799.2,2798.5,0.002]
[1769718308361,13.999,2799.1,2798.5,0.002]
[1769718309700,14.89216541,2799.1,2798.5,0.002]
[1769718309901,13.999,2799.0,2798.5,0.002]
[1769718310896,13.999,2799.0,2798.0,0.89349535]
[1769718311182,13.999,2799.0,2797.8,0.002]
[1769718311406,13.999,2799.0,2797.9,0.89350726]
[1769718311590,13.998,2798.8,2797.8,0.002]
[1769718311781,13.998,2798.6,2797.8,0.002]
[1769718314209,13.998,2798.3,2797.4,0.89566656]
[1769718316518,13.998,2798.1,2797.4,0.002]
[1769718317906,13.998,2798.8,2797.9,6.2749151]
[1769718318222,13.998,2798.8,2797.9,6.90280661]
[1769718318430,14.891252,2798.8,2798.0,0.89349535]
[1769718318645,14.891252,2798.8,2797.4,0.002]
[1769718318826,14.891252,2798.8,2797.9,0.89352085]
[1769718319703,14.891252,2798.8,2797.9,0.89352022]
[1769718320028,13.998,2798.7,2797.9,0.89352022]
[1769718321307,14.89127543,2798.7,2797.6,6.2749151]
[1769718321626,14.89127543,2798.7,2797.6,0.004]
[1769718321627,13.998,2798.7,2797.6,0.004]
[1769718322045,14.89129016,2798.7,2797.6,0.004]
[1769718322827,13.998,2798.7,2797.6,0.004]
[1769718323128,13.999,2798.9,2797.8,0.004]
[1769718323337,0.001,2798.9,2797.8,0.004]
[1769718323512,0.001,2798.9,2797.9,0.004]
[1769718324434,0.001,2799.2,2797.9,0.004]
[1769718325632,13.999,2799.2,2797.9,0.004]
[1769718326918,14.89211522,2799.2,2797.9,0.004]
[1769718327641,13.999,2799.0,2797.9,0.004]
[1769718328245,0.001,2799.0,2797.9,0.004]
[1769718329932,13.998,2798.9,2797.9,0.004]
[1769718332827,0.001,2799.0,2797.9,0.004]
[1769718333133,0.001,2799.2,2797.9,0.004]
[1769718335352,0.001,2799.2,2798.0,0.004]
[1769718335540,0.001,2799.2,2798.2,0.004]
[1769718336059,0.001,2799.2,2798.3,0.004]
[1769718337334,13.999,2799.2,2798.2,0.89343149]
[1769718337569,13.999,2799.2,2798.3,0.48485575]
[1769718338259,0.001,2799.5,2798.5,0.004]
[1769718338766,13.999,2799.5,2798.5,0.004]
[1769718339673,13.999,2799.5,2798.6,0.004]
[1769718340537,0.001,2799.9,2798.8,0.004]
[1769718340871,13.999,2799.9,2798.9,0.748]
[1769718341774,13.999,2799.9,2798.8,0.81630765]
[1769718341974,14.89189399,2799.9,2798.5,0.002]
[1769718342580,13.999,2799.9,2798.5,0.006]
[1769718342788,13.999,2799.9,2798.6,0.004]
[1769718343384,13.998,2799.8,2798.5,0.002]
[1769718344456,14.89093363,2799.8,2798.5,0.002]
[1769718344850,13.998,2799.8,2798.5,0.002]
[1769718345569,13.998,2799.8,2798.8,6.27172697]
[1769718346385,13.998,2799.8,2798.9,0.89320804]
[1769718346759,14.89092244,2799.8,2798.9,0.89320804]
[1769718346961,13.998,2799.7,2798.9,0.89320804]
[1769718348782,13.998,2799.7,2798.7,3.57283218]
[1769718348980,13.998,2799.7,2798.8,6.27172697]
[1769718349955,13.998,2799.7,2798.7,3.57283218]
[1769718351562,13.998,2799.4,2798.8,6.27172697]
[1769718351874,0.001,2799.5,2798.8,15.93111483]
[1769718352279,0.001,2799.5,2798.8,7.34551326]
[1769718353261,0.001,2799.9,2799.5,0.89301661]
[1769718353473,13.83064073,2800.4,2799.5,0.89301661]
[1769718353678,13.83064073,2800.3,2799.5,0.89301661]
[1769718358097,13.83064073,2800.3,2799.1,0.89314422]
[1769718358299,13.43489552,2800.1,2799.1,0.89314422]
[1769718359002,13.43489552,2800.1,2799.0,0.89315554]
[1769718359175,13.43489552,2800.1,2798.9,3.57282281]
[1769718359176,13.43489552,2799.8,2798.9,0.8931854]
[1769718359368,13.43489552,2799.8,2799.0,0.89317401]
[1769718360270,13.43489552,2799.6,2798.5,3.57523755]
[1769718360603,14.32772077,2800.1,2798.6,8.58560157]
[1769718360793,14.32772077,2800.1,2798.7,9.80168548]
[1769718360989,14.32772077,2800.1,2798.7,8.58560157]
[1769718361569,13.43489552,2800.1,2798.7,8.58560157]
[1769718362291,13.43489552,2800.1,2798.8,9.47884152]
[1769718362999,13.43489552,2800.1,2799.0,8.58760157]
[1769718363204,0.001,2799.6,2799.1,0.85876016]
[1769718363571,13.43589552,2799.6,2799.0,0.002]
[1769718364607,0.001,2799.6,2799.0,0.002]
[1769718364814,13.43489552,2799.8,2799.0,0.002]
[1769718364815,13.43489552,2800.1,2799.0,8.58760157]
[1769718365110,13.43489552,2800.4,2799.0,8.58760157]
[1769718365410,13.43489552,2800.4,2799.2,8.58560157]
[1769718369324,13.43489552,2800.4,2799.3,0.89308041]
[1769718373633,13.43489552,2800.4,2799.4,8.58560157]
[1769718375336,13.43489552,2800.4,2799.4,8.58760157]
[1769718375512,13.43489552,2800.4,2799.5,0.85876016]
[1769718375698,0.001,2800.2,2799.6,0.89298471]
[1769718375905,13.43589552,2800.2,2799.6,0.89298471]
[1769718377107,0.89262039,2800.8,2799.6,0.89298471]
[1769718377307,13.43489552,2800.7,2799.6,0.89298471]
[1769718377503,13.43489552,2800.7,2799.6,1.78274697]
[1769718380316,13.43489552,2800.7,2799.6,15.73037276]
[1769718381633,13.43489552,2800.7,2799.7,6.26762858]
[1769718382032,13.43489552,2800.7,2799.8,0.89292092]
[1769718382544,13.43489552,2800.7,2799.9,13.94762579]
[1769718382757,13.43489552,2800.7,2799.9,2.4679859]
[1769718384030,13.43489552,2800.7,2800.0,0.89285714]
[1769718388250,13.43489552,2800.7,2800.0,0.002]
[1769718388553,13.06023907,2800.5,2800.0,0.002]
[1769718390452,0.001,2800.5,2800.0,0.002]
[1769718390764,0.001,2800.5,2800.0,1.21799544]
[1769718391446,0.001,2800.5,2800.0,0.002]
[1769718391844,13.06023907,2800.5,2800.0,0.002]
[1769718401975,13.06023907,2800.5,2800.2,0.002]
[1769718404553,13.95294398,2800.5,2800.2,0.002]
[1769718404961,13.06023907,2800.5,2800.2,0.002]
[1769718405278,12.61158128,2800.4,2800.2,0.002]
[1769718407998,12.61258128,2800.5,2800.2,0.002]
[1769718411404,13.50528259,2800.5,2799.4,0.002]
[1769718411584,13.50528259,2800.5,2799.4,3.57410212]
[1769718411903,13.50528259,2800.5,2799.4,22.68095424]
[1769718412104,12.61158128,2800.3,2799.4,22.68095424]
[1769718412778,12.46158128,2800.3,2799.4,22.68095424]
[1769718414100,13.35436247,2800.3,2799.6,0.002]
[1769718414600,13.35536247,2800.3,2799.6,0.002]
[1769718417306,0.001,2800.3,2799.6,12.99113211]
[1769718417510,13.74830656,2800.6,2800.0,6.26762858]
[1769718417880,12.85561696,2800.8,2800.0,19.25676069]
[1769718418210,12.85561696,2800.8,2800.1,0.89282525]
[1769718418580,13.74822234,2800.8,2800.1,0.89282525]
[1769718419111,13.74822234,2800.8,2800.0,7.1604655]
[1769718419310,13.74822234,2800.8,2800.0,9.53257301]
[1769718419478,0.748,2801.0,2800.1,12.98913211]
[1769718419687,0.89253507,2801.1,2800.3,19.25676069]
[1769718419899,13.74815203,2801.1,2800.3,19.25676069]
[1769718420106,12.85561696,2801.1,2800.4,0.89272961]
[1769718420303,0.33468695,2801.2,2800.4,16.25390259]
[1769718420912,1.22716262,2801.2,2800.4,16.25390259]
[1769718421078,14.08277958,2801.2,2800.4,16.25390259]
[1769718421414,14.08277959,2801.2,2800.4,16.25390259]
[1769718421594,14.08277959,2801.2,2800.4,2.37204087]
[1769718421799,12.85561696,2801.0,2800.2,0.89276919]
[1769718421977,12.85561696,2801.0,2800.0,2.37210751]
[1769718421978,12.85561696,2801.0,2800.1,0.89279583]
[1769718422305,12.85561696,2801.0,2800.0,3.57133837]